{"text_format":"3","workbook":"xlsx","n_sheets":1,"sheets":["Wydatki nowego przedsiębiorstwa"],"not_rendered":{"defined_names":1},"read":"whole","date_system":"1900"}

{"sheet":"Wydatki nowego przedsiębiorstwa","index":0,"n_rows":120,"n_cols":4,"rows_kept":120,"merged":[[1,1,1,3],[60,1,60,3],[82,1,82,3]]}
["WYDATKI NOWEGO PRZEDSIĘBIORSTWA",null,null,"NAZWA FIRMY"]
[null,"PRZECZYTAJ, ZANIM ZACZNIESZ KORZYSTAĆ Z TEGO ARKUSZA\nNiemal każdy, kto rozpoczyna działalność na własną rękę, zakłada zbyt niskie koszty, a potem musi stawić czoła niebezpieczeństwu nadwyrężenia swojego kapitału. Aby uniknąć tej pułapki, należy zastosować rygorystyczne podejście do analizy i planowania. Ten szablon Wydatki nowego przedsiębiorstwa ułatwia przebrnięcie przez ten proces.\n\nNAJPIERW OSZACUJ WYDATKI\nJakie będą koszty założenia firmy i rozpoczęcia działalności?  Kluczem do zapewnienia odpowiedniej dokładności jest dbałość o szczegóły. Dla wydatków z każdej kategorii utwórz listę pozycji, które musisz kupić. Dotyczy to zarówno produktów materialnych (sprzętu, produktów do sprzedaży itp.), jak i usług (na przykład ubezpieczenia czy profesjonalnej aranżacji biura). Następnie ustal, gdzie możesz nabyć te towary i usługi. Sprawdź oferty kilku dostawców, skorzystaj z porównywarek ofert. Zwracaj uwagę nie tylko na cenę: warunki płatności, dostawa, niezawodność i serwis również mają znaczenie. "]
[]
[null,"WYDATKI NOWEGO PRZEDSIĘBIORSTWA"]
[null,"BUDYNKI I NIERUCHOMOŚCI"," ","KWOTA"]
[null,"Zakup",null,{"v":0,"d":"0.00 zł"}]
[null,"Budowa",null,{"v":0,"d":"0.00 zł"}]
[null,"Aranżacja lub remont",null,{"v":0,"d":"0.00 zł"}]
[null,"Inne",null,{"v":0,"d":"0.00 zł"}]
[null,"Suma",null,{"$f":"SUBTOTAL(109,Nieruchomości[KWOTA])","v":{"v":0,"d":"0.00 zł"}}]
[]
[null,"ULEPSZENIA MIENIA DZIERŻAWIONEGO"," ","KWOTA"]
[null,"Pozycja 1",null,{"v":0,"d":"0.00 zł"}]
[null,"Pozycja 2",null,{"v":0,"d":"0.00 zł"}]
[null,"Pozycja 3",null,{"v":0,"d":"0.00 zł"}]
[null,"Pozycja 4",null,{"v":0,"d":"0.00 zł"}]
[null,"Suma",null,{"$f":"SUBTOTAL(109,Ulepszenia[KWOTA])","v":{"v":0,"d":"0.00 zł"}}]
[]
[null,"LISTA NAJWAŻNIEJSZEGO WYPOSAŻENIA"," ","KWOTA"]
[null,"Meble",null,{"v":0,"d":"0.00 zł"}]
[null,"Wyposażenie",null,{"v":0,"d":"0.00 zł"}]
[null,"Osprzęt i wyposażenie stałe",null,{"v":0,"d":"0.00 zł"}]
[null,"Aparatura",null,{"v":0,"d":"0.00 zł"}]
[null,"Inne",null,{"v":0,"d":"0.00 zł"}]
[null,"Suma",null,{"$f":"SUBTOTAL(109,Kapitał[KWOTA])","v":{"v":0,"d":"0.00 zł"}}]
[]
[null,"WYDATKI NA LOKALIZACJĘ I ADMINISTRACYJNE"," ","KWOTA"]
[null,"Czynsz",null,{"v":0,"d":"0.00 zł"}]
[null,"Koszty doprowadzenia mediów",null,{"v":0,"d":"0.00 zł"}]
[null,"Opłaty prawne i księgowe",null,{"v":0,"d":"0.00 zł"}]
[null,"Ubezpieczenia opłacane z góry",null,{"v":0,"d":"0.00 zł"}]
[null,"Wynagrodzenia na start ",null,{"v":0,"d":"0.00 zł"}]
[null,"Inne",null,{"v":0,"d":"0.00 zł"}]
[null,"Suma",null,{"$f":"SUBTOTAL(109,Wydatki_administracyjne[KWOTA])","v":{"v":0,"d":"0.00 zł"}}]
[]
[null,"MAGAZYN NA OTWARCIE"," ","KWOTA"]
[null,"Kategoria 1",null,{"v":0,"d":"0.00 zł"}]
[null,"Kategoria 2",null,{"v":0,"d":"0.00 zł"}]
[null,"Kategoria 3",null,{"v":0,"d":"0.00 zł"}]
[null,"Kategoria 4",null,{"v":0,"d":"0.00 zł"}]
[null,"Kategoria 5",null,{"v":0,"d":"0.00 zł"}]
[null,"Suma",null,{"$f":"SUBTOTAL(109,Magazyn_na_otwarcie[KWOTA])","v":{"v":0,"d":"0.00 zł"}}]
[]
[null,"WYDATKI NA REKLAMĘ I PROMOCJĘ"," ","KWOTA"]
[null,"Reklama",null,{"v":0,"d":"0.00 zł"}]
[null,"Oznakowanie",null,{"v":0,"d":"0.00 zł"}]
[null,"Drukowanie",null,{"v":0,"d":"0.00 zł"}]
[null,"Podróże i rozrywka",null,{"v":0,"d":"0.00 zł"}]
[null,"Inne/dodatkowe kategorie",null,{"v":0,"d":"0.00 zł"}]
[null,"Suma",null,{"$f":"SUBTOTAL(109,Wydatki_na_promocję[KWOTA])","v":{"v":0,"d":"0.00 zł"}}]
[]
[null,"INNE WYDATKI"," ","KWOTA"]
[null,"Inny wydatek 1",null,{"v":0,"d":"0.00 zł"}]
[null,"Inny wydatek 2",null,{"v":0,"d":"0.00 zł"}]
[null,"Suma",null,{"$f":"SUBTOTAL(109,Inne_wydatki[KWOTA])","v":{"v":0,"d":"0.00 zł"}}]
[]
[null,"Rezerwa na nieprzewidziane wydatki",null,{"v":0,"d":"0.00 zł"}]
[]
[null,"Kapitał obrotowy ",null,{"v":0,"d":"0.00 zł"}]
[]
[null,"DODAJ REZERWĘ NA NIEPRZEWIDZIANE WYDATKI\nW opisie koniecznie wyjaśnij proces ustalania kwoty umieszczanej w tej rezerwie. \n\nUSTAL PRZEPŁYW GOTÓWKOWY\nNie możesz założyć firmy z pustym kontem bankowym. Potrzebujesz kapitału na pokrycie wydatków na etapie rozpoczynania działalności. Najlepiej na koniec przygotuj 12-miesięczną prognozę przepływu gotówkowego. Na jej podstawie możesz ustalić, jakiego kapitału obrotowego potrzebujesz. Na razie albo pozostaw ten wiersz pusty, albo wstaw wstępną wartość. Po opracowaniu przepływu pieniężnego możesz tu wrócić i wpisać starannie wyznaczoną liczbę.\n\nPODAJ SWOJE ŹRÓDŁA KAPITAŁU\nPo ustaleniu, jaki kapitał jest potrzebny na początek, zajmij się najważniejszą częścią tego arkusza. Wpisz kwotę, którą wniesiesz samodzielnie, kwoty wnoszone przez partnerów lub inwestorów i kapitał uzyskany z pożyczek."]
[]
[null,"ŹRÓDŁA KAPITAŁU"]
[null,"INWESTYCJE WŁAŚCICIELI (IMIĘ I NAZWISKO ORAZ UDZIAŁ PROCENTOWY)"," ","KWOTA"]
[null,"Twoje imię i nazwisko oraz udział procentowy",null,{"v":0,"d":"0.00 zł"}]
[null,"Inny inwestor",null,{"v":0,"d":"0.00 zł"}]
[null,"Inny inwestor",null,{"v":0,"d":"0.00 zł"}]
[null,"Inny inwestor",null,{"v":0,"d":"0.00 zł"}]
[null,"Suma",null,{"$f":"SUBTOTAL(109,Inwestycje_właścicieli[KWOTA])","v":{"v":0,"d":"0.00 zł"}}]
[]
[null,"POŻYCZKI BANKOWE"," ","KWOTA"]
[null,"Bank 1",null,{"v":0,"d":"0.00 zł"}]
[null,"Bank 2",null,{"v":0,"d":"0.00 zł"}]
[null,"Bank 3",null,{"v":0,"d":"0.00 zł"}]
[null,"Bank 4",null,{"v":0,"d":"0.00 zł"}]
[null,"Suma",null,{"$f":"SUBTOTAL(109,Pożyczki_bankowe[KWOTA])","v":{"v":0,"d":"0.00 zł"}}]
[]
[null,"INNE POŻYCZKI"," ","KWOTA"]
[null,"Źródło 1",null,{"v":0,"d":"0.00 zł"}]
[null,"Źródło 2",null,{"v":0,"d":"0.00 zł"}]
[null,"Suma",null,{"$f":"SUBTOTAL(109,Inne_pożyczki[KWOTA])","v":{"v":0,"d":"0.00 zł"}}]
[]
[null,"PAMIĘTAJ O UDOKUMENTOWANIU WARTOŚCI ZASTAWU\nJeśli zamierzasz przedstawić ten plan bankowi w ramach starania się o pożyczkę, w sekcji u dołu wykaż aktywa, jakie możesz zaoferować jako zastaw zabezpieczający pożyczkę, i określ ich szacowane wartości. Pamiętaj, że bank może zwrócić się o wykazanie zasadności tych szacunków."]
[]
[null,"ZESTAWIENIE PODSUMOWUJĄCE"]
[null,"ŹRÓDŁO KAPITAŁU"," ","SUMY"]
[null,"Inwestycje właścicieli i innych podmiotów",null,{"$f":"Inwestycje_właścicieli[[#Totals],[KWOTA]]","v":{"v":0,"d":"0.00 zł"}}]
[null,"Pożyczki bankowe",null,{"$f":"Pożyczki_bankowe[[#Totals],[KWOTA]]","v":{"v":0,"d":"0.00 zł"}}]
[null,"Inne pożyczki",null,{"$f":"Inne_pożyczki[[#Totals],[KWOTA]]","v":{"v":0,"d":"0.00 zł"}}]
[null,"Suma",null,{"$f":"SUBTOTAL(109,Źródła_kapitału[SUMY])","v":{"v":0,"d":"0.00 zł"}}]
[]
[null,"WYDATKI NOWEGO PRZEDSIĘBIORSTWA"," ","SUMY"]
[null,"Budynki i nieruchomości",null,{"$f":"Nieruchomości[[#Totals],[KWOTA]]","v":{"v":0,"d":"0.00 zł"}}]
[null,"Ulepszenia mienia dzierżawionego",null,{"$f":"Ulepszenia[[#Totals],[KWOTA]]","v":{"v":0,"d":"0.00 zł"}}]
[null,"Najważniejsze wyposażenie",null,{"$f":"Kapitał[[#Totals],[KWOTA]]","v":{"v":0,"d":"0.00 zł"}}]
[null,"Wydatki na lokalizację i administracyjne",null,{"$f":"Wydatki_administracyjne[[#Totals],[KWOTA]]","v":{"v":0,"d":"0.00 zł"}}]
[null,"Magazyn na otwarcie",null,{"$f":"Magazyn_na_otwarcie[[#Totals],[KWOTA]]","v":{"v":0,"d":"0.00 zł"}}]
[null,"Wydatki na reklamę i promocję",null,{"$f":"Wydatki_na_promocję[[#Totals],[KWOTA]]","v":{"v":0,"d":"0.00 zł"}}]
[null,"Inne wydatki",null,{"$f":"Inne_wydatki[[#Totals],[KWOTA]]","v":{"v":0,"d":"0.00 zł"}}]
[null,"Fundusz na nieprzewidziane wydatki",null,{"$f":"SUM('Wydatki nowego przedsiębiorstwa'!$C$57)","v":{"v":0,"d":"0.00 zł"}}]
[null,"Kapitał obrotowy",null,{"$f":"SUM('Wydatki nowego przedsiębiorstwa'!$C$59)","v":{"v":0,"d":"0.00 zł"}}]
[null,"Suma",null,{"$f":"SUBTOTAL(109,Wydatki_nowego_przedsiębiorstwa[SUMY])","v":{"v":0,"d":"0.00 zł"}}]
[]
[null,"ZABEZPIECZENIE I ZASTAW DO UBIEGANIA SIĘ O POŻYCZKĘ"]
[null,"POZYCJE DO ZABEZPIECZENIA POŻYCZEK","OPIS","WARTOŚĆ"]
[null,"Nieruchomości",null,{"v":0,"d":"0.00 zł"}]
[null,"Inne pozycje do zastawienia",null,{"v":0,"d":"0.00 zł"}]
[null,"Inne pozycje do zastawienia",null,{"v":0,"d":"0.00 zł"}]
[null,"Inne pozycje do zastawienia",null,{"v":0,"d":"0.00 zł"}]
[null,"Suma",null,{"$f":"SUBTOTAL(109,Pozycje_do_zastawienia[WARTOŚĆ])","v":{"v":0,"d":"0.00 zł"}}]
[]
[null,"WŁAŚCICIELE"," ","  "]
[null,"Twoje imię i nazwisko"]
[null,"Inny właściciel"]
[null,"Inny właściciel"]
[]
[null,"ŻYRANCI (SPOZA GRONA WŁAŚCICIELI)"," ","  "]
[null,"Żyrant 1"]
[null,"Żyrant 2"]
[null,"Żyrant 3"]